fUSD/lending_fUSD_20251130
["ID","MTS","AMOUNT","RATE_DAILY","PERIOD"]
[395148211,1764480418684,-288.0,0.00012871,2]
[395148212,1764480418715,-1200.0,0.00012871,2]
[395148213,1764480418744,-300.0,0.00012871,2]
[395148214,1764480418773,-300.0,0.00012871,2]
[395148215,1764480418800,-686.668,0.00012872,2]
[395148216,1764480418828,-2200.5979,0.00012872,2]
[395148217,1764480418943,-49.4782,0.00012872,2]
[395148219,1764480425392,-300.0,0.00012871,2]
[395148220,1764480425424,-1359.4352,0.00012872,2]
[395148221,1764480425454,-250.0,0.00012872,2]
[395148222,1764480425488,-174.7728082,0.00012872,2]
[395148223,1764480425518,-603.66404754,0.00012872,2]
[395148224,1764480425793,-4624.26588852,0.00012872,2]
[395148225,1764480431540,475.95,0.00024999,120]
[395148234,1764480457191,761.66099906,6.908e-05,2]
[395148235,1764480457213,765.76900094,6.908e-05,2]
[395148236,1764480457400,1527.43,7.271e-05,2]
[395148237,1764480457608,1527.43,7.635e-05,2]
[395148238,1764480457838,331.50104708,7.998e-05,2]
[395148239,1764480457860,1195.92895292,7.998e-05,2]
[395148240,1764480459077,1527.43,8.362e-05,2]
[395148241,1764480459200,1428.7710951,8.726e-05,2]
[395148242,1764480459221,98.6589049,8.726e-05,2]
[395148243,1764480459320,1527.43,9.089e-05,2]
[395148244,1764480459408,1527.43,9.453e-05,2]
[395148245,1764480459477,998.61114312,9.816e-05,2]
[395148246,1764480459504,528.81885688,9.816e-05,2]
[395148247,1764480459575,1527.43,0.0001018,2]
[395148248,1764480460134,1527.43,0.00010543,2]
[395148249,1764480460188,568.45119114,0.00010907,2]
[395148250,1764480460211,958.97880886,0.00010907,2]
[395148251,1764480460296,1527.43,0.0001127,2]
[395148252,1764480460358,1527.43,0.00011634,2]
[395148253,1764480460462,138.29123916,0.00011998,2]
[395148254,1764480460488,1389.13876084,0.00011998,2]
[395148255,1764480460679,1527.43,0.00012361,2]
[395148256,1764480460871,1235.56128718,0.00012725,2]
[395148257,1764480460896,291.86871282,0.00012725,2]
[395148264,1764480500168,-300.0,0.00012871,2]
[395148265,1764480500203,-250.0,0.00012871,2]
[395148266,1764480500240,-505.2686431,0.00012872,2]
[395148267,1764480500602,556.39807444,0.00010725,2]
[395148268,1764480503486,-209.109138,0.00012872,2]
[395148269,1764480505197,-196.42370851,0.00012872,2]
[395148289,1764480606905,307.93848892,0.00010725,2]
[395148290,1764480620026,-300.0,0.00012871,2]
[395148291,1764480620058,-1200.0,0.00012871,2]
[395148292,1764480620089,-300.0,0.00012871,2]
[395148293,1764480620130,-150.0,0.00012871,2]
[395148294,1764480623472,607.23229007,0.00012864,2]
[395148295,1764480629930,188.9971138,0.00012772,2]
[395148300,1764480631387,-1589.19851039,0.00012872,2]
[395148302,1764480631396,-2816.2066,0.00012872,2]
[395148304,1764480631406,-1000.0,0.00012872,2]
[395148306,1764480631415,-436.39279031,0.00012872,2]
[395148307,1764480631426,-4411.47823142,0.00012872,2]
[395148308,1764480631448,-53090.6358319,0.00012872,2]
[395148309,1764480631459,-658.23230958,0.00012872,2]
[395148310,1764480631471,-945.21123653,0.00012872,2]
[395148311,1764480631482,-753.54269787,0.00012872,2]
[395148312,1764480631494,-1060.57603231,0.00012872,2]
[395148313,1764480631519,-1258.59788091,0.00012872,2]
[395148314,1764480631632,-999.0,0.00012872,2]
[395148315,1764480631644,-20385.40637701,0.00012872,2]
[395148319,1764480634511,410.68666423,0.00012871,2]
[395148320,1764480634550,172.29022803,0.00012871,2]
[395148321,1764480634594,200.5477249,0.00012871,2]
[395148322,1764480636475,500.0,0.00012871,2]
[395148323,1764480636544,500.0,0.00012871,2]
[395148324,1764480636622,500.0,0.00012871,2]
[395148325,1764480636672,500.0,0.00012871,2]
[395148326,1764480636733,500.0,0.00012871,2]
[395148327,1764480636788,500.0,0.00012871,2]
[395148328,1764480636854,500.0,0.00012871,2]
[395148329,1764480636908,500.0,0.00012871,2]
[395148330,1764480636972,500.0,0.00012871,2]
[395148331,1764480637036,20.25597897,0.00012871,2]
[395148332,1764480637594,-479.74402103,0.00012871,2]
[395148333,1764480637606,-500.0,0.00012871,2]
[395148334,1764480637616,-500.0,0.00012871,2]
[395148335,1764480637625,-500.0,0.00012871,2]
[395148336,1764480637636,-500.0,0.00012871,2]
[395148337,1764480637646,-500.0,0.00012871,2]
[395148338,1764480637655,-500.0,0.00012871,2]
[395148339,1764480637665,-500.0,0.00012871,2]
[395148340,1764480637675,-500.0,0.00012871,2]
[395148341,1764480637684,-500.0,0.00012871,2]
[395148342,1764480637694,-500.0,0.00012871,2]
[395148343,1764480637704,-500.0,0.00012871,2]
[395148344,1764480637714,-500.0,0.00012871,2]
[395148345,1764480637726,-500.0,0.00012871,2]
[395148346,1764480637735,-500.0,0.00012871,2]
[395148347,1764480637744,-500.0,0.00012871,2]
[395148348,1764480637753,-500.0,0.00012871,2]
[395148349,1764480637762,-500.0,0.00012871,2]
[395148350,1764480637772,-500.0,0.00012871,2]
[395148351,1764480637781,-500.0,0.00012871,2]
[395148352,1764480637790,-500.0,0.00012871,2]
[395148353,1764480637799,-676000.92661216,0.00012872,2]
[395148354,1764480637808,-817.2326,0.00012872,2]
[395148355,1764480637817,-19381.1126,0.00012872,2]
[395148356,1764480637826,-10020.41021379,0.00012872,2]
[395148357,1764480637834,-186.13538307,0.00012872,2]
[395148358,1764480637844,-9963.12395965,0.00012872,2]
[395148359,1764480637853,-236.24639228,0.00012872,2]
[395148360,1764480637862,-254.52711841,0.00012884,2]
[395148362,1764480637871,-202.08563354,0.00012964,2]
[395148363,1764480637880,-151.0,0.00012964,2]
[395148365,1764480637889,-151.0,0.00012964,2]
[395148367,1764480637898,-151.0,0.00012964,2]
[395148369,1764480637907,-151.0,0.00012964,2]
[395148370,1764480637916,-151.0,0.00012964,2]
[395148371,1764480637925,-151.0,0.00012964,2]
[395148373,1764480637934,-151.0,0.00012964,2]
[395148375,1764480637943,-151.0,0.00012964,2]
[395148377,1764480637951,-151.0,0.00012964,2]
[395148379,1764480637960,-151.0,0.00012964,2]
[395148381,1764480637969,-151.0,0.00012964,2]
[395148382,1764480637978,-1072.21727013,0.00012971,2]
[395148383,1764480637987,-504.41,0.00012971,2]
[395148393,1764480638302,-1000.0,0.00012972,2]
[395148394,1764480638332,-9999.99,0.00012972,2]
[395148395,1764480638342,-150.99,0.00012972,2]
[395148396,1764480638351,-167.79,0.00012972,2]
[395148397,1764480638361,-200.0,0.00012972,2]
[395148398,1764480638370,-250.0,0.00013,2]
[395148399,1764480638379,-250.0,0.00013,2]
[395148400,1764480638388,-250.0,0.00013,2]
[395148401,1764480638398,-250.0,0.00013,2]
[395148402,1764480638407,-250.0,0.00013,2]
[395148403,1764480638416,-250.0,0.00013,2]
[395148404,1764480638425,-250.0,0.00013,2]
[395148405,1764480638435,-250.0,0.00013,2]
[395148406,1764480638445,-250.0,0.00013,2]
[395148407,1764480638454,-250.0,0.00013,2]
[395148408,1764480638464,-250.0,0.00013,2]
[395148409,1764480638473,-250.0,0.00013,2]
[395148410,1764480638482,-250.0,0.00013,2]
[395148411,1764480638492,-250.0,0.00013,2]
[395148412,1764480638501,-250.0,0.00013,2]
[395148413,1764480638511,-250.0,0.00013,2]
[395148414,1764480638520,-250.0,0.00013,2]
[395148415,1764480638530,-250.0,0.00013,2]
[395148416,1764480638539,-250.0,0.00013,2]
[395148417,1764480638548,-250.0,0.00013,2]
[395148418,1764480638561,-250.0,0.00013,2]
[395148419,1764480638570,-250.0,0.00013,2]
[395148420,1764480638579,-250.0,0.00013,2]
[395148421,1764480638588,-250.0,0.00013,2]
[395148422,1764480638597,-250.0,0.00013,2]
[395148423,1764480638609,-250.0,0.00013,2]
[395148424,1764480638621,-250.0,0.00013,2]
[395148425,1764480638630,-250.0,0.00013,2]
[395148426,1764480638639,-250.0,0.00013,2]
[395148427,1764480638649,-250.0,0.00013,2]
[395148428,1764480638658,-250.0,0.00013,2]
[395148429,1764480638667,-250.0,0.00013,2]
[395148430,1764480638677,-250.0,0.00013,2]
[395148431,1764480638686,-250.0,0.00013,2]
[395148432,1764480638695,-250.0,0.00013,2]
[395148433,1764480638705,-250.0,0.00013,2]
[395148434,1764480638715,-250.0,0.00013,2]
[395148435,1764480638724,-250.0,0.00013,2]
[395148436,1764480638734,-368.8,0.00013,2]
[395148437,1764480638743,-1527.43,0.00013088,2]
[395148438,1764480638753,-200.0,0.00013102,2]
[395148439,1764480638762,-200.0,0.00013233,2]
[395148440,1764480638771,-504.41,0.00013245,2]
[395148441,1764480638780,-10020.41021377,0.0001332,2]
[395148442,1764480638790,-9963.12395962,0.0001332,2]
[395148443,1764480638799,-200.0,0.00013365,2]
[395148444,1764480638808,-236.24639221,0.00013447,2]
[395148445,1764480638817,-1527.43,0.00013452,2]
[395148446,1764480638826,-504.41,0.00013519,2]
[395148447,1764480638836,-293.57592219,0.00013654,2]
[395148448,1764480638845,-8485.09,0.00013685,2]
[395148449,1764480638855,-500.0,0.00013698,2]
[395148450,1764480638864,-545.90394043,0.00013698,2]
[395148451,1764480638874,-151.21309349,0.00013699,2]
[395148452,1764480638883,-500.0,0.00013699,2]
[395148453,1764480638893,-368.48677015,0.00013699,2]
[395148454,1764480638903,-500.0,0.00013699,2]
[395148455,1764480638913,-500.0,0.00013699,2]
[395148456,1764480638923,-500.0,0.00013699,2]
[395148457,1764480638933,-500.0,0.00013699,2]
[395148458,1764480638943,-500.0,0.00013699,2]
[395148459,1764480638953,-161.52,0.0001376,2]
[395148460,1764480638962,-10020.41021377,0.00013767,2]
[395148461,1764480638972,-9963.12395962,0.00013767,2]
[395148462,1764480638981,-504.41,0.00013793,2]
[395148463,1764480638991,-1527.43,0.00013815,2]
[395148464,1764480639000,-797.0,0.0001389,2]
[395148465,1764480639009,-255.0,0.00013978,2]
[395148466,1764480639019,-236.24639221,0.00014023,2]
[395148467,1764480639029,-1000.0,0.00014065,2]
[395148468,1764480639038,-504.41,0.00014067,2]
[395148469,1764480639048,-420.0,0.00014117,2]
[395148470,1764480639058,-1680.0,0.00014158,2]
[395148471,1764480639067,-195.0,0.00014158,2]
[395148472,1764480639076,-281.90988596,0.00014158,2]
[395148473,1764480639086,-250.0,0.00014158,2]
[395148474,1764480639095,-300.0,0.00014158,2]
[395148475,1764480639104,-300.0,0.00014158,2]
[395148476,1764480639113,-300.0,0.00014158,2]
[395148477,1764480639123,-150.39058857,0.00014158,2]
[395148478,1764480639132,-195.0,0.00014158,2]
[395148479,1764480639142,-277.72917998,0.00014158,2]
[395148480,1764480639151,-195.0,0.00014159,2]
[395148481,1764480639161,-195.0,0.00014159,2]
[395148482,1764480639171,-10020.41021377,0.00014215,2]
[395148483,1764480639180,-186.13538306,0.00014215,2]
[395148484,1764480639190,-9963.12395962,0.00014215,2]
[395148485,1764480639200,-999.0,0.00014239,3]
[395148486,1764480639210,-379.70568108,0.00014316,2]
[395148487,1764480639219,-504.45,0.00014341,2]
[395148488,1764480639229,-607.23229005,0.00014382,2]
[395148489,1764480639238,-237.3246584,0.00014521,2]
[395148490,1764480639249,-237.66937952,0.00014532,2]
[395148491,1764480639258,-236.24639221,0.00014598,2]
[395148492,1764480639267,-26370.51470969,0.000146,2]
[395148493,1764480639277,-10020.41021377,0.00014662,2]
[395148494,1764480639288,-9963.12395962,0.00014662,2]
[395148495,1764480639297,-985.43015279,0.00014917,2]
[395148496,1764480639307,-222.23133542,0.0001499,2]
[395148497,1764480639316,-1358.9209654,0.00015,2]
[395148498,1764480639326,-161.11,0.00015,5]
[395148499,1764480639335,-269487.55322711,0.00015,4]
[395148500,1764480639345,-12037.00064594,0.00015,2]
[395148501,1764480639354,-166.66,0.00015017,2]
[395148502,1764480639363,-10020.41021377,0.0001511,2]
[395148503,1764480639373,-9963.12395962,0.0001511,2]
[395148504,1764480639382,-236.24639221,0.00015174,2]
[395148505,1764480639392,-433.0,0.00015175,2]
[395148506,1764480639401,-985.43015278,0.00015259,2]
[395148507,1764480639410,-705.05,0.000153,2]
[395148508,1764480639420,-166.66,0.00015333,2]
[395148509,1764480639429,-587.0,0.00015483,2]
[395148510,1764480639438,-10020.41021377,0.00015557,2]
[395148511,1764480639447,-186.13538306,0.00015557,2]
[395148512,1764480639456,-9963.12395962,0.00015557,2]
[395148513,1764480639465,-2351.0,0.00015574,2]
[395148514,1764480639475,-985.43015278,0.00015601,2]
[395148515,1764480639484,-705.79,0.00015614,2]
[395148516,1764480639494,-166.66,0.00015649,2]
[395148517,1764480639503,-236.24639221,0.00015749,2]
[395148518,1764480639513,-19643.88,0.00015817,2]
[395148519,1764480639522,-1000.0,0.00015823,2]
[395148520,1764480639531,-4645.6354255,0.000159,2]
[395148521,1764480639540,-607.23229005,0.000159,2]
[395148522,1764480639549,-985.43015278,0.00015943,2]
[395148523,1764480639565,-150.0,0.0001595,2]
[395148524,1764480639574,-368.52008053,0.0001596,2]
[395148525,1764480639583,-166.66,0.00015965,2]
[395148526,1764480639592,-500.0,0.00015973,2]
[395148528,1764480639602,-500.0,0.00015973,2]
[395148530,1764480639616,-504.72891622,0.00015973,2]
[395148531,1764480639626,-500.0,0.00015973,2]
[395148533,1764480639642,-500.0,0.00015973,2]
[395148535,1764480639652,-176.19485435,0.00015973,2]
[395148537,1764480639661,-503.30230408,0.00015973,2]
[395148539,1764480639671,-165.08638781,0.00015973,2]
[395148541,1764480639682,-500.0,0.00015973,2]
[395148543,1764480639692,-500.0,0.00015973,2]
[395148545,1764480639703,-500.0,0.00015973,2]
[395148547,1764480639714,-512.6158172,0.00015973,2]
[395148549,1764480639724,-500.0,0.00015973,2]
[395148551,1764480639733,-201.11548058,0.00015973,2]
[395148553,1764480639742,-500.0,0.00015973,2]
[395148554,1764480639751,-500.0,0.00015973,2]
[395148555,1764480639760,-500.0,0.00015973,2]
[395148556,1764480639769,-622.74851177,0.00015973,2]
[395148557,1764480639778,-500.0,0.00015973,2]
[395148558,1764480639787,-160.04783372,0.00015973,2]
[395148559,1764480639795,-500.0,0.00015973,2]
[395148560,1764480639804,-500.0,0.00015973,2]
[395148561,1764480639813,-500.0,0.00015973,2]
[395148562,1764480639822,-500.0,0.00015973,2]
[395148563,1764480639832,-500.0,0.00015973,2]
[395148564,1764480639841,-215.69681959,0.00015973,2]
[395148565,1764480639851,-151.0,0.00015997,2]
[395148566,1764480639862,-319.26681909,0.00016,2]
[395148567,1764480639871,-23666.07387272,0.00016,2]
[395148568,1764480639881,-80242.06015155,0.00016,2]
[395148569,1764480639891,-212073.56098378,0.00016,4]
[395148570,1764480639910,-10020.41021377,0.00016005,2]
[395148571,1764480639922,-9963.12395962,0.00016005,2]
[395148572,1764480639933,-519.19,0.00016099,2]
[395148573,1764480639942,-48152.28098711,0.000162,5]
[395148574,1764480639951,-166.66,0.00016281,2]
[395148575,1764480639961,-985.43015278,0.00016284,2]
[395148576,1764480639970,-236.24639221,0.00016325,2]
[395148577,1764480639979,-200.0,0.0001634,2]
[395148578,1764480639989,-500.0,0.00016438,2]
[395148579,1764480639999,-500.0,0.00016438,2]
[395148580,1764480640009,-500.0,0.00016438,2]
[395148581,1764480640019,-500.0,0.00016438,2]
[395148582,1764480640029,-500.0,0.00016438,2]
[395148583,1764480640039,-500.0,0.00016438,2]
[395148584,1764480640048,-500.0,0.00016438,2]
[395148585,1764480640058,-500.0,0.00016438,2]
[395148586,1764480640067,-500.0,0.00016438,2]
[395148587,1764480640077,-500.0,0.00016438,2]
[395148588,1764480640086,-500.0,0.00016438,2]
[395148589,1764480640096,-500.0,0.00016438,2]
[395148590,1764480640106,-500.0,0.00016438,2]
[395148591,1764480640115,-500.0,0.00016438,2]
[395148592,1764480640125,-500.0,0.00016438,2]
[395148593,1764480640136,-500.0,0.00016438,2]
[395148594,1764480640145,-500.0,0.00016438,2]
[395148595,1764480640155,-500.0,0.00016438,2]
[395148596,1764480640165,-500.0,0.00016438,2]
[395148597,1764480640174,-500.0,0.00016438,2]
[395148598,1764480640183,-500.0,0.00016438,2]
[395148599,1764480640193,-500.0,0.00016438,2]
[395148600,1764480640202,-500.0,0.00016438,2]
[395148601,1764480640212,-500.0,0.00016438,2]
[395148602,1764480640221,-642.79221301,0.00016438,2]
[395148604,1764480640231,-500.0,0.00016438,2]
[395148605,1764480640240,-500.0,0.00016438,2]
[395148606,1764480640250,-500.0,0.00016438,2]
[395148607,1764480640265,-500.0,0.00016438,2]
[395148608,1764480640275,-800.0,0.00016438,2]
[395148609,1764480640285,-10020.41021377,0.00016452,2]
[395148610,1764480640295,-9963.12395962,0.00016452,2]
[395148611,1764480640306,-736.0,0.00016487,2]
[395148612,1764480640316,-1000.0,0.00016521,2]
[395148613,1764480640330,-1000.0,0.00016521,2]
[395148614,1764480640340,-1001.35128612,0.00016521,2]
[395148615,1764480640350,-1000.0,0.00016521,2]
[395148616,1764480640359,-1000.745763,0.00016521,2]
[395148617,1764480640369,-1000.0,0.00016521,2]
[395148618,1764480640379,-1000.0,0.00016521,2]
[395148619,1764480640389,-360.33354768,0.00016521,2]
[395148620,1764480640399,-495.14510969,0.00016521,2]
[395148621,1764480640409,-193.94586418,0.00016521,2]
[395148622,1764480640418,-1002.56103431,0.00016521,2]
[395148623,1764480640428,-500.92969355,0.00016521,2]
[395148624,1764480640438,-1018.43163791,0.00016521,2]
[395148625,1764480640447,-957.90842426,0.00016521,2]
[395148626,1764480640457,-1001.18740995,0.00016521,2]
[395148628,1764480640467,-500.77322072,0.00016521,2]
[395148629,1764480640477,-1000.0,0.00016521,2]
[395148630,1764480640487,-166.66,0.00016597,2]
[395148631,1764480640497,-985.43015278,0.00016626,2]
[395148632,1764480640507,-1500.0,0.00016634,2]
[395148633,1764480640517,-10020.41021377,0.000169,2]
[395148634,1764480640527,-186.13538306,0.000169,2]
[395148635,1764480640536,-201.41866534,0.000169,2]
[395148636,1764480640546,-236.24639221,0.000169,2]
[395148637,1764480640557,-9963.12395962,0.000169,2]
[395148638,1764480640568,-10000.0,0.000169,2]
[395148639,1764480640577,-188.99711379,0.000169,2]
[395148640,1764480640587,-985.43015278,0.00016968,2]
[395148641,1764480640596,-500.0,0.00016973,2]
[395148642,1764480640606,-500.0,0.00016973,2]
[395148643,1764480640615,-500.0,0.00016973,2]
[395148644,1764480640624,-500.0,0.00016973,2]
[395148645,1764480640638,-616.40948711,0.00016973,2]
[395148646,1764480640648,-500.0,0.00016973,2]
[395148647,1764480640658,-500.0,0.00016973,2]
[395148648,1764480640667,-500.0,0.00016973,2]
[395148649,1764480640676,-500.0,0.00016973,2]
[395148650,1764480640686,-507.2295556,0.00016973,2]
[395148651,1764480640695,-176.66973248,0.00016973,2]
[395148652,1764480640705,-500.0,0.00016973,2]
[395148653,1764480640716,-500.49965341,0.00016973,2]
[395148654,1764480640726,-500.0,0.00016973,2]
[395148655,1764480640735,-500.0,0.00016973,2]
[395148656,1764480640746,-500.0,0.00016973,2]
[395148657,1764480640756,-500.0,0.00016973,2]
[395148658,1764480640766,-500.0,0.00016973,2]
[395148659,1764480640775,-187.03419553,0.00016973,2]
[395148660,1764480640785,-500.838144,0.00016973,2]
[395148661,1764480640795,-215.92719524,0.00016973,2]
[395148662,1764480640804,-500.0,0.00016973,2]
[395148663,1764480640814,-500.0,0.00016973,2]
[395148664,1764480640823,-500.0,0.00016973,2]
[395148665,1764480640833,-172.99922432,0.00016973,2]
[395148666,1764480640843,-415.54250471,0.00016973,2]
[395148667,1764480640852,-500.0,0.00016973,2]
[395148668,1764480640862,-500.0,0.00016973,2]
[395148669,1764480640872,-500.0,0.00016973,2]
[395148670,1764480640882,-267.0,0.00016982,2]
[395148671,1764480640891,-1347.0,0.00016986,2]
[395148672,1764480640901,-222.23133542,0.0001699,2]
[395148673,1764480640911,-151.0,0.00016997,2]
[395148674,1764480640921,-300.0,0.00016999,2]
[395148675,1764480640932,-300.0,0.00016999,2]
[395148676,1764480640942,-500.0,0.00016999,2]
[395148677,1764480640951,-500.0,0.00016999,2]
[395148678,1764480640961,-500.0,0.00016999,2]
[395148679,1764480640970,-500.0,0.00016999,2]
[395148680,1764480640980,-500.0,0.00016999,2]
[395148681,1764480640994,-500.0,0.00016999,2]
[395148682,1764480641004,-500.0,0.00016999,2]
[395148683,1764480641014,-500.0,0.00016999,2]
[395148684,1764480641024,-500.0,0.00016999,2]
[395148685,1764480641034,-500.0,0.00016999,2]
[395148686,1764480641044,-500.0,0.00016999,2]
[395148687,1764480641055,-500.0,0.00016999,2]
[395148688,1764480641065,-500.0,0.00016999,2]
[395148689,1764480641075,-500.0,0.00016999,2]
[395148690,1764480641084,-500.0,0.00016999,2]
[395148691,1764480641094,-500.0,0.00016999,2]
[395148692,1764480641104,-500.0,0.00016999,2]
[395148693,1764480641114,-500.0,0.00016999,2]
[395148694,1764480641124,-191.9483848,0.00016999,2]
[395148695,1764480641134,-250.0,0.00017,2]
[395148696,1764480641144,-6530899.63056673,0.00017,2]
[395148706,1764480642786,-478.2985759,0.00012871,2]
[395148707,1764480642797,-500.0,0.00012871,2]
[395148708,1764480642806,-500.0,0.00012871,2]
[395148709,1764480642815,-2810.90196177,0.00017,2]
[395148711,1764480643282,-500.0,0.00015973,2]
[395148712,1764480643292,-51.75042112,0.00016521,2]
[395148713,1764480643419,-948.24957888,0.00016521,2]
[395148714,1764480643429,-2325512.03177017,0.00017,2]
[395148715,1764480643447,-1077.40211716,0.00017,2]
[395148716,1764480643477,-365.648982,0.00017,2]
[395148717,1764480643487,-378.66,0.00017,2]
[395148718,1764480643567,-58.97109977,0.00017,2]
[395148719,1764480643578,-28080.54528214,0.00017,2]
[395148720,1764480643590,-910.07629096,0.00017,2]
[395148721,1764480643611,-2786.1885218,0.00017,2]
[395148722,1764480643829,-500.46020966,0.00015973,2]
[395148723,1764480643838,-18.55078727,0.000169,2]
[395148724,1764480643850,-333.03755441,0.000169,2]
[395148725,1764480643861,-199.41018467,0.000169,2]
[395148726,1764480643870,-6703.11841512,0.00017,2]
[395148727,1764480645494,-275.88471324,0.00017,2]
[395148728,1764480645662,-54341.31734703,0.00017,2]
[395148729,1764480645674,-260.63,0.00017,2]
[395148750,1764480693147,460.324,0.00012614,2]
[395148751,1764480693203,172.97725601,0.00012614,2]
[395148783,1764480749028,-443.02251707,0.00012871,2]
[395148787,1764480781244,300.0,0.0001287,2]
[395148788,1764480782245,150.0,0.0001287,2]
[395148789,1764480787758,4392.33541,7.945e-05,2]
[395148821,1764480927007,200.08513291,0.000131,2]
[395148976,1764481415249,11579.81856021,0.00014,4]
[395149053,1764481831647,-250.0,0.00013676,2]
[395149054,1764481831656,-209.64116241,0.00013676,2]
[395149055,1764481831667,-250.0,0.00013689,2]
[395149056,1764481831677,-121.8166417,0.00013697,2]
[395149057,1764481831691,-28.1833583,0.00013697,2]
[395149058,1764481831701,-300.0,0.00013697,2]
[395149059,1764481831711,-175.43128165,0.00013697,2]
[395149078,1764481838786,-1618.675051,0.00013697,2]
[395149079,1764481838796,-1024.56871835,0.00013697,2]
[395149080,1764481838806,-508.7696699,0.00013698,2]
[395149081,1764481838815,-515.50675276,0.00013698,2]
[395149082,1764481838826,-500.0,0.00013698,2]
[395149083,1764481838836,-500.0,0.00013698,2]
[395149084,1764481838846,-514.41914055,0.00013698,2]
[395149085,1764481838856,-500.0,0.00013698,2]
[395149086,1764481838866,-500.0,0.00013698,2]
[395149087,1764481838876,-500.0,0.00013698,2]
[395149088,1764481838885,-500.0,0.00013698,2]
[395149089,1764481838895,-500.0,0.00013698,2]
[395149090,1764481838904,-500.0,0.00013698,2]
[395149091,1764481838914,-500.0,0.00013698,2]
[395149092,1764481838923,-500.0,0.00013698,2]
[395149093,1764481838933,-500.0,0.00013698,2]
[395149094,1764481838943,-500.0,0.00013698,2]
[395149095,1764481838952,-500.0,0.00013698,2]
[395149096,1764481838962,-500.0,0.00013698,2]
[395149097,1764481838971,-500.0,0.00013698,2]
[395149098,1764481838980,-500.0,0.00013698,2]
[395149099,1764481838990,-500.0,0.00013698,2]
[395149100,1764481838999,-500.0,0.00013698,2]
[395149101,1764481839009,-500.0,0.00013698,2]
[395149102,1764481839018,-500.0,0.00013698,2]
[395149103,1764481839027,-500.0,0.00013698,2]
[395149104,1764481839036,-500.0,0.00013698,2]
[395149105,1764481839046,-500.0,0.00013698,2]
[395149106,1764481839055,-500.0,0.00013698,2]
[395149107,1764481839065,-500.0,0.00013698,2]
[395149108,1764481839075,-500.0,0.00013698,2]
[395149109,1764481839084,-500.0,0.00013698,2]
[395149110,1764481839094,-500.0,0.00013698,2]
[395149111,1764481839103,-500.0,0.00013698,2]
[395149112,1764481839113,-500.0,0.00013698,2]
[395149113,1764481839123,-500.0,0.00013698,2]
[395149114,1764481839132,-500.0,0.00013698,2]
[395149115,1764481839142,-500.59985249,0.00013698,2]
[395149116,1764481839151,-500.0,0.00013698,2]
[395149117,1764481839161,-500.0,0.00013698,2]
[395149118,1764481839170,-312.82118125,0.00013698,2]
[395149119,1764481839180,-832.92,0.00013698,2]
[395149120,1764481839190,-195.0,0.00013705,2]
[395149121,1764481839200,-500.0,0.00013765,2]
[395149122,1764481839213,-374.27630779,0.00013765,2]
[395149123,1764481839223,-500.0,0.00013765,2]
[395149124,1764481839232,-500.0,0.00013765,2]
[395149125,1764481839242,-500.0,0.00013765,2]
[395149126,1764481839252,-500.0,0.00013765,2]
[395149127,1764481839261,-249.10959223,0.00013765,2]
[395149128,1764481839270,-219.97289193,0.00013766,2]
[395149129,1764481839280,-621.79084846,0.00013766,2]
[395149130,1764481839289,-500.0,0.00013766,2]